fUSD/lending_fUSD_20260628
["ID","MTS","AMOUNT","RATE_DAILY","PERIOD"]
[426606165,1782659904000,162.09808656,0.00037431,120]
[426606170,1782660038000,-152.0,0.00014638,2]
[426606172,1782660038000,-151.0,0.00014638,2]
[426606174,1782660038000,-153.0,0.00014638,2]
[426606173,1782660038000,-153.0,0.00014638,2]
[426606171,1782660038000,-151.0,0.00014638,2]
[426606175,1782660038000,-152.0,0.00014638,2]
[426606178,1782660038000,-151.0,0.00014638,2]
[426606169,1782660038000,-151.0,0.00014638,2]
[426606177,1782660038000,-151.0,0.00014638,2]
[426606180,1782660038000,-151.0,0.00014638,2]
[426606181,1782660038000,-150.0,0.00014638,2]
[426606179,1782660038000,-152.0,0.00014638,2]
[426606182,1782660038000,-151.0,0.00014638,2]
[426606183,1782660038000,-150.0,0.00014638,2]
[426606184,1782660038000,-150.0,0.00014638,2]
[426606176,1782660038000,-150.0,0.00014638,2]
[426606200,1782660039000,-500.0,0.00014885,2]
[426606201,1782660039000,-190.14702284,0.00014885,2]
[426606198,1782660039000,-500.0,0.00014885,2]
[426606199,1782660039000,-500.0,0.00014885,2]
[426606196,1782660039000,-500.0,0.00014885,2]
[426606197,1782660039000,-500.0,0.00014885,2]
[426606194,1782660039000,-225.60371323,0.00014885,2]
[426606193,1782660039000,-500.0,0.00014885,2]
[426606188,1782660039000,-151.0,0.00014638,2]
[426606192,1782660039000,-279.30832635,0.00014885,2]
[426606191,1782660039000,-150.0,0.00014884,2]
[426606190,1782660039000,-369.49,0.00014638,2]
[426606189,1782660039000,-152.0,0.00014638,2]
[426606186,1782660039000,-150.0,0.00014638,2]
[426606185,1782660039000,-151.0,0.00014638,2]
[426606187,1782660039000,-150.0,0.00014638,2]
[426606195,1782660039000,-500.0,0.00014885,2]
[426606202,1782660039000,-500.0,0.00014885,2]
[426606203,1782660039000,-500.0,0.00014885,2]
[426606205,1782660039000,-500.0,0.00014885,2]
[426606204,1782660039000,-500.0,0.00014885,2]
[426606222,1782660039000,-160.0,0.00014926,2]
[426606221,1782660039000,-216.54711319,0.00014926,2]
[426606219,1782660039000,-152.0,0.00014886,2]
[426606220,1782660039000,-3046.258,0.000149,2]
[426606217,1782660039000,-151.0,0.00014886,2]
[426606216,1782660039000,-151.0,0.00014886,2]
[426606214,1782660039000,-151.0,0.00014886,2]
[426606218,1782660039000,-152.0,0.00014886,2]
[426606213,1782660039000,-89426.4229,0.00014886,2]
[426606210,1782660039000,-500.0,0.00014885,2]
[426606212,1782660039000,-500.0,0.00014885,2]
[426606211,1782660039000,-500.0,0.00014885,2]
[426606209,1782660039000,-500.0,0.00014885,2]
[426606207,1782660039000,-500.0,0.00014885,2]
[426606208,1782660039000,-500.0,0.00014885,2]
[426606215,1782660039000,-151.0,0.00014886,2]
[426606206,1782660039000,-500.0,0.00014885,2]
[426606235,1782660040000,-150.0,0.00015846,2]
[426606236,1782660040000,-8353.54,0.00016116,2]
[426606237,1782660040000,-1250.63752692,0.00016338,2]
[426606241,1782660040000,-500.0,0.00016436,2]
[426606238,1782660040000,-500.0,0.00016436,2]
[426606240,1782660040000,-270.37232231,0.00016436,2]
[426606234,1782660040000,-369.49,0.00015631,2]
[426606239,1782660040000,-500.0,0.00016436,2]
[426606233,1782660040000,-1371.64,0.0001531,2]
[426606224,1782660040000,-150.0,0.00015048,2]
[426606231,1782660040000,-9999.99,0.0001531,2]
[426606229,1782660040000,-799.36,0.0001531,2]
[426606230,1782660040000,-150.99,0.0001531,2]
[426606226,1782660040000,-151.0,0.00015208,2]
[426606228,1782660040000,-1159.05,0.0001531,2]
[426606227,1782660040000,-299.99,0.0001531,2]
[426606225,1782660040000,-369.49,0.00015134,2]
[426606223,1782660040000,-150.0,0.00014995,2]
[426606232,1782660040000,-4999.99,0.0001531,2]
[426606244,1782660040000,-517.28457016,0.00016436,2]
[426606242,1782660040000,-500.0,0.00016436,2]
[426606245,1782660040000,-861.51102359,0.00016438,2]
[426606243,1782660040000,-258.87019667,0.00016436,2]
[426606264,1782660040000,-861.51102359,0.00016438,2]
[426606263,1782660040000,-861.51102359,0.00016438,2]
[426606261,1782660040000,-861.51102359,0.00016438,2]
[426606262,1782660040000,-861.51102359,0.00016438,2]
[426606260,1782660040000,-861.51102359,0.00016438,2]
[426606258,1782660040000,-861.51102359,0.00016438,2]
[426606256,1782660040000,-861.51102359,0.00016438,2]
[426606257,1782660040000,-861.51102359,0.00016438,2]
[426606259,1782660040000,-861.51102359,0.00016438,2]
[426606252,1782660040000,-861.51102359,0.00016438,2]
[426606254,1782660040000,-861.51102359,0.00016438,2]
[426606246,1782660040000,-861.51102359,0.00016438,2]
[426606249,1782660040000,-861.51102359,0.00016438,2]
[426606248,1782660040000,-861.51102359,0.00016438,2]
[426606247,1782660040000,-861.51102359,0.00016438,2]
[426606251,1782660040000,-861.51102359,0.00016438,2]
[426606253,1782660040000,-861.51102359,0.00016438,2]
[426606255,1782660040000,-861.51102359,0.00016438,2]
[426606250,1782660040000,-861.51102359,0.00016438,2]
[426606275,1782660041000,-861.51102359,0.00016438,2]
[426606280,1782660041000,-861.51102359,0.00016438,2]
[426606282,1782660041000,-861.51102359,0.00016438,2]
[426606281,1782660041000,-861.51102359,0.00016438,2]
[426606278,1782660041000,-861.51102359,0.00016438,2]
[426606276,1782660041000,-861.51102359,0.00016438,2]
[426606279,1782660041000,-861.51102359,0.00016438,2]
[426606277,1782660041000,-861.51102359,0.00016438,2]
[426606274,1782660041000,-861.51102359,0.00016438,2]
[426606283,1782660041000,-861.51102359,0.00016438,2]
[426606273,1782660041000,-861.51102359,0.00016438,2]
[426606271,1782660041000,-861.51102359,0.00016438,2]
[426606270,1782660041000,-861.51102359,0.00016438,2]
[426606268,1782660041000,-861.51102359,0.00016438,2]
[426606269,1782660041000,-861.51102359,0.00016438,2]
[426606266,1782660041000,-861.51102359,0.00016438,2]
[426606265,1782660041000,-861.51102359,0.00016438,2]
[426606267,1782660041000,-861.51102359,0.00016438,2]
[426606272,1782660041000,-861.51102359,0.00016438,2]
[426606284,1782660041000,-861.51102359,0.00016438,2]
[426606285,1782660041000,-861.51102359,0.00016438,2]
[426606286,1782660041000,-861.51102359,0.00016438,2]
[426606307,1782660041000,-861.51102359,0.00016438,2]
[426606306,1782660041000,-861.51102359,0.00016438,2]
[426606305,1782660041000,-861.51102359,0.00016438,2]
[426606303,1782660041000,-861.51102359,0.00016438,2]
[426606304,1782660041000,-861.51102359,0.00016438,2]
[426606300,1782660041000,-861.51102359,0.00016438,2]
[426606301,1782660041000,-861.51102359,0.00016438,2]
[426606299,1782660041000,-861.51102359,0.00016438,2]
[426606298,1782660041000,-861.51102359,0.00016438,2]
[426606297,1782660041000,-861.51102359,0.00016438,2]
[426606302,1782660041000,-861.51102359,0.00016438,2]
[426606296,1782660041000,-861.51102359,0.00016438,2]
[426606295,1782660041000,-861.51102359,0.00016438,2]
[426606292,1782660041000,-861.51102359,0.00016438,2]
[426606293,1782660041000,-861.51102359,0.00016438,2]
[426606291,1782660041000,-861.51102359,0.00016438,2]
[426606290,1782660041000,-861.51102359,0.00016438,2]
[426606289,1782660041000,-861.51102359,0.00016438,2]
[426606288,1782660041000,-861.51102359,0.00016438,2]
[426606294,1782660041000,-861.51102359,0.00016438,2]
[426606287,1782660041000,-861.51102359,0.00016438,2]
[426606318,1782660042000,-861.51102359,0.00016438,2]
[426606320,1782660042000,-861.51102359,0.00016438,2]
[426606319,1782660042000,-861.51102359,0.00016438,2]
[426606316,1782660042000,-861.51102359,0.00016438,2]
[426606308,1782660042000,-861.51102359,0.00016438,2]
[426606313,1782660042000,-861.51102359,0.00016438,2]
[426606311,1782660042000,-861.51102359,0.00016438,2]
[426606310,1782660042000,-861.51102359,0.00016438,2]
[426606309,1782660042000,-861.51102359,0.00016438,2]
[426606317,1782660042000,-861.51102359,0.00016438,2]
[426606314,1782660042000,-861.51102359,0.00016438,2]
[426606321,1782660042000,-861.51102359,0.00016438,2]
[426606312,1782660042000,-861.51102359,0.00016438,2]
[426606323,1782660042000,-835.00299207,0.00016438,2]
[426606324,1782660042000,-835.00299207,0.00016438,2]
[426606334,1782660042000,-835.00299207,0.00016438,2]
[426606333,1782660042000,-835.00299207,0.00016438,2]
[426606335,1782660042000,-835.00299204,0.00016438,2]
[426606332,1782660042000,-835.00299207,0.00016438,2]
[426606330,1782660042000,-835.00299207,0.00016438,2]
[426606315,1782660042000,-861.51102359,0.00016438,2]
[426606331,1782660042000,-835.00299207,0.00016438,2]
[426606327,1782660042000,-835.00299207,0.00016438,2]
[426606325,1782660042000,-835.00299207,0.00016438,2]
[426606328,1782660042000,-835.00299207,0.00016438,2]
[426606326,1782660042000,-835.00299207,0.00016438,2]
[426606329,1782660042000,-835.00299207,0.00016438,2]
[426606322,1782660042000,-861.51102359,0.00016438,2]
[426606336,1782660124000,5000.0,0.00037386,120]
[426606337,1782660224000,1213.44,0.00037386,120]
[426606338,1782660226000,1213.44,0.00037386,120]
[426606339,1782660229000,1213.44,0.00037386,120]
[426606340,1782660283000,514.0250897,0.00037387,120]
[426606341,1782660349000,-150.0,0.000184,2]
[426606342,1782660349000,-73.58093444,0.000184,2]
[426606346,1782660431000,526.4,0.00016438,2]
[426606345,1782660431000,5000.0,0.00037387,120]
[426606352,1782660438000,-151.0,0.000184,2]
[426606353,1782660438000,-151.0,0.000184,2]
[426606350,1782660438000,-153.0,0.000184,2]
[426606359,1782660438000,-151.0,0.000184,2]
[426606347,1782660438000,-77.41906556,0.000184,2]
[426606348,1782660438000,-151.0,0.000184,2]
[426606351,1782660438000,-152.0,0.000184,2]
[426606349,1782660438000,-150.0,0.000184,2]
[426606355,1782660438000,-151.0,0.000184,2]
[426606364,1782660438000,-113.5140778,0.000184,2]
[426606356,1782660438000,-153.0,0.000184,2]
[426606357,1782660438000,-153.0,0.000184,2]
[426606358,1782660438000,-151.0,0.000184,2]
[426606361,1782660438000,-151.0,0.000184,2]
[426606360,1782660438000,-151.0,0.000184,2]
[426606362,1782660438000,-151.0,0.000184,2]
[426606363,1782660438000,-151.0,0.000184,2]
[426606354,1782660438000,-151.0,0.000184,2]
[426606370,1782660441000,-259.60587909,0.0001841,2]
[426606367,1782660441000,-152.0,0.000184,2]
[426606369,1782660441000,-151.0,0.00018407,2]
[426606368,1782660441000,-150.0,0.00018402,2]
[426606366,1782660441000,-150.0,0.000184,2]
[426606365,1782660441000,-37.4859222,0.000184,2]
[426606372,1782660449000,-266.79412091,0.0001841,2]
[426606371,1782660449000,-152.0,0.000184,2]
[426606375,1782660449000,-160.0,0.00018447,2]
[426606373,1782660449000,-151.0,0.0001843,2]
[426606378,1782660449000,-399.99999999,0.00019,2]
[426606380,1782660449000,-166.64583105,0.00019,2]
[426606377,1782660449000,-150.0,0.00018999,2]
[426606376,1782660449000,-150.0,0.00018519,2]
[426606381,1782660449000,-1259.70091143,0.00019,2]
[426606379,1782660449000,-441.73564744,0.00019,2]
[426606374,1782660449000,-216.54711319,0.00018447,2]
[426606384,1782660545000,-152.0,0.000183,2]
[426606383,1782660545000,-150.0,0.000183,2]
[426606385,1782660545000,-152.0,0.000183,2]
[426606386,1782660545000,-500.0,0.000183,2]
[426606388,1782660545000,-151.0,0.00019,2]
[426606387,1782660545000,-1790.08734523,0.00019,2]
[426606389,1782660545000,-150.0,0.00019,2]
[426606391,1782660545000,-150.0,0.00019,2]
[426606392,1782660545000,-353.38851795,0.00019,2]
[426606393,1782660545000,-166.64583105,0.00019,2]
[426606390,1782660545000,-319.99999999,0.00019,2]
[426606395,1782660545000,-319.99999999,0.000192,2]
[426606403,1782660545000,-319.99999999,0.000196,2]
[426606394,1782660545000,-3049.78825666,0.000192,2]
[426606402,1782660545000,-3049.78825666,0.000196,2]
[426606401,1782660545000,-226.0,0.00019452,2]
[426606399,1782660545000,-319.99999999,0.000194,2]
[426606404,1782660545000,-250.1236496,0.000196,2]
[426606398,1782660545000,-3049.78825666,0.000194,2]
[426606397,1782660545000,-166.64583105,0.000192,2]
[426606396,1782660545000,-353.38851795,0.000192,2]
[426606400,1782660545000,-353.38851795,0.000194,2]
[426606405,1782660552000,-103.26486835,0.000196,2]
[426606406,1782660552000,-3049.78825666,0.000198,2]
[426606407,1782660552000,-319.99999999,0.000198,2]
[426606408,1782660552000,-353.38851795,0.000198,2]
[426606412,1782660552000,-326.0,0.0002,2]
[426606410,1782660552000,-227.0,0.0002,2]
[426606411,1782660552000,-151.0,0.0002,2]
[426606413,1782660552000,-299.01816229,0.0002,2]
[426606409,1782660552000,-264.0,0.0002,2]
[426606415,1782660552000,-200.0,0.00020047,2]
[426606417,1782660552000,-200.0,0.00020159,2]
[426606416,1782660552000,-241.3,0.00020123,2]
[426606418,1782660552000,-175.51,0.00020181,2]
[426606419,1782660552000,-299.01816229,0.000202,2]
[426606420,1782660552000,-3049.78825666,0.000202,2]
[426606421,1782660552000,-875.93,0.00020325,2]
[426606422,1782660552000,-526.4,0.00020381,2]
[426606414,1782660552000,-3049.78825666,0.0002,2]
[426606424,1782660553000,-3049.78825666,0.000204,2]
[426606423,1782660553000,-299.01816229,0.000204,2]
[426606425,1782660553000,-166.66,0.00020443,2]
[426606427,1782660553000,-1327.99,0.00020515,2]
[426606430,1782660553000,-299.01816229,0.000208,2]
[426606429,1782660553000,-3049.78825666,0.000206,2]
[426606428,1782660553000,-299.01816229,0.000206,2]
[426606426,1782660553000,-248.18,0.00020499,2]
[426606431,1782660553000,-3049.78825666,0.000208,2]
[426606433,1782660553000,-166.66,0.00020873,2]
[426606432,1782660553000,-227.0,0.00020821,2]
[426606435,1782660553000,-227.0,0.00021,2]
[426606437,1782660553000,-326.0,0.00021,2]
[426606438,1782660553000,-368.19986115,0.00021,2]
[426606439,1782660553000,-8792.46584575,0.00021002,2]
[426606436,1782660553000,-151.0,0.00021,2]
[426606434,1782660553000,-264.0,0.00021,2]
[426606440,1782660564000,166.67,0.00022235,30]
[426606441,1782660565000,166.67,0.00022989,30]
[426606444,1782660616000,433.24,0.00028807,120]
[426606461,1782660632000,-176.27174971,0.00020837,2]
[426606467,1782660632000,-160.0,0.00021002,2]
[426606462,1782660632000,-823.72825029,0.00020837,2]
[426606463,1782660632000,-143.26012761,0.00020838,2]
[426606468,1782660632000,-248.18,0.00021012,2]
[426606464,1782660632000,-268.73987239,0.00020838,2]
[426606472,1782660632000,-248.18,0.00021524,2]
[426606465,1782660632000,-294.55988892,0.00021,2]
[426606469,1782660632000,-294.55988892,0.000212,2]
[426606470,1782660632000,-294.55988892,0.000214,2]
[426606471,1782660632000,-166.67,0.00021482,2]
[426606460,1782660632000,-500.0,0.00020324,2]
[426606466,1782660632000,-216.54711319,0.00021002,2]
[426606459,1782660632000,-500.0,0.00020324,2]
[426606475,1782660632000,-4139.46755072,0.000216,2]
[426606458,1782660632000,-500.0,0.00020324,2]
[426606457,1782660632000,-539.00844073,0.00020324,2]
[426606455,1782660632000,-500.0,0.00020324,2]
[426606453,1782660632000,-500.0,0.00020324,2]
[426606454,1782660632000,-500.0,0.00020324,2]
[426606452,1782660632000,-500.0,0.00020324,2]
[426606451,1782660632000,-500.0,0.00020324,2]
[426606450,1782660632000,-8.36864405,0.00020324,2]
[426606448,1782660632000,-403.0,0.00020157,2]
[426606449,1782660632000,-491.63135595,0.00020324,2]
[426606447,1782660632000,-152.0,0.00018976,2]
[426606446,1782660632000,-151.0,0.000183,2]
[426606474,1782660632000,-927.3320319,0.00021595,2]
[426606456,1782660632000,-500.0,0.00020324,2]
[426606473,1782660632000,-15495.1379681,0.00021595,2]
[426606517,1782660632000,-227.0,0.00022,2]
[426606477,1782660632000,-1586.26738872,0.000216,2]
[426606476,1782660632000,-2726.52883703,0.000216,2]
[426606551,1782660632000,-227.0,0.00023,2]
[426606544,1782660632000,-1125.57377421,0.00022766,2]
[426606546,1782660632000,-500.0,0.00022767,2]
[426606543,1782660632000,-248.18,0.00022549,2]
[426606541,1782660632000,-1692.3,0.00022466,2]
[426606538,1782660632000,-526.4,0.00022353,2]
[426606550,1782660632000,-264.0,0.00023,2]
[426606548,1782660632000,-562.09919912,0.00022767,2]
[426606549,1782660632000,-90071.63,0.00022768,2]
[426606536,1782660632000,-6086.0,0.00022169,2]
[426606547,1782660632000,-500.0,0.00022767,2]
[426606534,1782660632000,-1233.665,0.00022169,2]
[426606532,1782660632000,-324.0,0.00022169,2]
[426606545,1782660632000,-381.20913767,0.00022767,2]
[426606524,1782660632000,-248.18,0.00022037,2]
[426606529,1782660632000,-1361.0,0.00022169,2]
[426606553,1782660632000,-326.0,0.00023,2]
[426606509,1782660632000,-5000.0,0.00021918,2]
[426606497,1782660632000,-890.49151378,0.000216,2]
[426606511,1782660632000,-264.0,0.00022,2]
[426606500,1782660632000,-2187.26470975,0.000216,2]
[426606506,1782660632000,-294.55988892,0.000219,2]
[426606504,1782660632000,-294.55988892,0.000216,2]
[426606552,1782660632000,-159.0,0.00023,2]
[426606520,1782660632000,-151.0,0.00022,2]
[426606527,1782660632000,-1277.0,0.00022169,2]
[426606502,1782660632000,-2146.11,0.000216,2]
[426606522,1782660632000,-326.0,0.00022,2]
[426606594,1782660633000,-175.2055858,0.00023764,2]
[426606595,1782660633000,-157.55443594,0.00023764,2]
[426606589,1782660633000,-155.1684216,0.00023763,2]
[426606590,1782660633000,-192.84816809,0.00023763,2]
[426606586,1782660633000,-151.0,0.000237,2]
[426606588,1782660633000,-166.67,0.00023743,30]
[426606584,1782660633000,-151.0,0.000237,2]
[426606583,1782660633000,-151.0,0.000237,2]
[426606591,1782660633000,-170.58063353,0.00023763,2]
[426606582,1782660633000,-580.78457669,0.000237,2]
[426606587,1782660633000,-151.0,0.000237,2]
[426606596,1782660633000,-165.93779139,0.00023764,2]
[426606598,1782660633000,-152.64926729,0.00023764,2]
[426606593,1782660633000,-223.69096351,0.00023763,2]
[426606597,1782660633000,-163.92270686,0.00023764,2]
[426606608,1782660633000,-5465.22,0.00024298,7]
[426606599,1782660633000,-157.060907,0.00023842,2]
[426606609,1782660633000,-5465.22,0.00024298,7]
[426606601,1782660633000,-227.0,0.00024,2]
[426606600,1782660633000,-264.0,0.00024,2]
[426606602,1782660633000,-326.0,0.00024,2]
[426606603,1782660633000,-1218.13,0.00024174,2]
[426606606,1782660633000,-250.0,0.0002418,2]
[426606581,1782660633000,-151.0,0.000237,2]
[426606592,1782660633000,-183.96216231,0.00023763,2]
[426606585,1782660633000,-151.0,0.000237,2]
[426606569,1782660633000,-151.0,0.000237,2]
[426606578,1782660633000,-151.0,0.000237,2]
[426606554,1782660633000,-7508.88,0.00023,7]
[426606555,1782660633000,-433.24,0.00023045,2]
[426606556,1782660633000,-1500.0,0.00023079,2]
[426606559,1782660633000,-1500.0,0.00023079,2]
[426606557,1782660633000,-1500.0,0.00023079,2]
[426606562,1782660633000,-1500.0,0.00023079,2]
[426606561,1782660633000,-1500.0,0.00023079,2]
[426606560,1782660633000,-1500.0,0.00023079,2]
[426606558,1782660633000,-1500.0,0.00023079,2]
[426606564,1782660633000,-1500.0,0.00023152,2]
[426606563,1782660633000,-1500.0,0.00023079,2]
[426606565,1782660633000,-194.01,0.00023163,2]
[426606567,1782660633000,-151.0,0.000237,2]
[426606605,1782660633000,-10337.24,0.00024174,2]
[426606572,1782660633000,-151.0,0.000237,2]
[426606571,1782660633000,-151.0,0.000237,2]
[426606573,1782660633000,-151.0,0.000237,2]
[426606570,1782660633000,-151.0,0.000237,2]
[426606568,1782660633000,-151.0,0.000237,2]
[426606574,1782660633000,-151.0,0.000237,2]
[426606566,1782660633000,-151.0,0.000237,2]
[426606575,1782660633000,-1500.0,0.000237,2]
[426606577,1782660633000,-151.0,0.000237,2]
[426606576,1782660633000,-151.0,0.000237,2]
[426606579,1782660633000,-151.0,0.000237,2]
[426606580,1782660633000,-151.0,0.000237,2]
[426606604,1782660633000,-647.3,0.00024174,2]
[426606621,1782660633000,-341.16126706,0.00025025,2]
[426606610,1782660633000,-526.4,0.00024324,2]
[426606642,1782660633000,-165.23,0.00025327,7]
[426606639,1782660633000,-282.0,0.00025169,2]
[426606643,1782660633000,-1500.0,0.00025344,2]
[426606645,1782660633000,-4155.25,0.00025607,7]
[426606647,1782660633000,-465.50526479,0.00025866,2]
[426606644,1782660633000,-178.58051821,0.00025566,2]
[426606648,1782660633000,-578.54450426,0.00025866,2]
[426606649,1782660633000,-289.37825035,0.00025866,2]
[426606607,1782660633000,-1500.0,0.00024248,2]
[426606646,1782660633000,-308.60880326,0.00025866,2]
[426606652,1782660633000,-314.13330948,0.00025866,2]
[426606653,1782660633000,-297.72865874,0.00025866,2]
[426606651,1782660633000,-347.25178191,0.00025866,2]
[426606654,1782660633000,-176.66070945,0.00025866,2]
[426606655,1782660633000,-551.88648692,0.00025866,2]
[426606660,1782660633000,-393.83739165,0.00025867,2]
[426606659,1782660633000,-194.21758824,0.00025867,2]
[426606661,1782660633000,-203.73430962,0.00025867,2]
[426606658,1782660633000,-525.6167574,0.00025867,2]
[426606656,1782660633000,-157.07205747,0.00025866,2]
[426606663,1782660633000,-254.3717199,0.00025867,2]
[426606657,1782660633000,-227.5843763,0.00025867,2]
[426606662,1782660633000,-490.58532479,0.00025867,2]
[426606664,1782660633000,-164.65179283,0.00025867,2]
[426606665,1782660633000,-472.66330783,0.00025867,2]
[426606640,1782660633000,-1230.0,0.00025169,2]
[426606638,1782660633000,-1361.0,0.00025169,2]
[426606650,1782660633000,-511.74190058,0.00025866,2]
[426606641,1782660633000,-6086.0,0.00025169,2]
[426606613,1782660633000,-165.23,0.00024658,2]
[426606637,1782660633000,-500.0,0.00025078,2]
[426606618,1782660633000,-154.30440163,0.00025025,2]
[426606616,1782660633000,-237.0,0.00025,2]
[426606617,1782660633000,-338.0,0.00025,2]
[426606615,1782660633000,-276.0,0.00025,2]
[426606614,1782660633000,-1500.0,0.00024796,2]
[426606620,1782660633000,-385.69633617,0.00025025,2]
[426606612,1782660633000,-1000.0,0.00024658,2]
[426606611,1782660633000,-1125.57377421,0.00024379,2]
[426606622,1782660633000,-173.62589095,0.00025025,2]
[426606624,1782660633000,-367.92432461,0.00025025,2]
[426606619,1782660633000,-310.33684319,0.00025025,2]
[426606626,1782660633000,-315.10887189,0.00025025,2]
[426606623,1782660633000,-157.06665474,0.00025025,2]
[426606635,1782660633000,-500.0,0.00025078,2]
[426606634,1782660633000,-500.0,0.00025078,2]
[426606633,1782660633000,-201.5428774,0.00025026,2]
[426606632,1782660633000,-171.40896603,0.00025026,2]
[426606636,1782660633000,-500.0,0.00025078,2]
[426606630,1782660633000,-305.29853457,0.00025025,2]
[426606631,1782660633000,-217.32852233,0.00025026,2]
[426606628,1782660633000,-157.54244531,0.00025025,2]
[426606627,1782660633000,-331.87558277,0.00025025,2]
[426606625,1782660633000,-350.4111716,0.00025025,2]
[426606629,1782660633000,-327.84541372,0.00025025,2]
[426606699,1782660634000,-578.7565007,0.00026427,2]
[426606690,1782660634000,-164.89,0.00025997,30]
[426606691,1782660634000,-165.23,0.00025997,30]
[426606692,1782660634000,-150.0,0.00026171,5]
[426606711,1782660634000,-241.65419928,0.00026427,2]
[426606693,1782660634000,-526.4,0.00026296,2]
[426606695,1782660634000,-1171.68,0.00026417,2]
[426606697,1782660634000,-620.67368638,0.00026427,2]
[426606696,1782660634000,-462.91320488,0.00026427,2]
[426606698,1782660634000,-771.39267235,0.00026427,2]
[426606703,1782660634000,-595.45731749,0.00026427,2]
[426606701,1782660634000,-520.87767286,0.00026427,2]
[426606702,1782660634000,-471.19996422,0.00026427,2]
[426606709,1782660634000,-455.16875261,0.00026427,2]
[426606704,1782660634000,-353.32141889,0.00026427,2]
[426606706,1782660634000,-735.84864923,0.00026427,2]
[426606710,1782660634000,-428.11548402,0.00026427,2]
[426606707,1782660634000,-894.76385404,0.00026427,2]
[426606708,1782660634000,-314.14411494,0.00026427,2]
[426606686,1782660634000,-204.88183526,0.00025911,2]
[426606700,1782660634000,-682.32253411,0.00026427,2]
[426606688,1782660634000,-433.24,0.00025926,2]
[426606694,1782660634000,-299.96453018,0.00026397,2]
[426606689,1782660634000,-1125.57377421,0.00025993,2]
[426606712,1782660634000,-160.26809834,0.00026427,2]
[426606666,1782660634000,-202.14451529,0.00025867,2]
[426606676,1782660634000,-342.81793207,0.00025867,2]
[426606667,1782660634000,-497.81337416,0.00025867,2]
[426606669,1782660634000,-212.91264157,0.00025867,2]
[426606671,1782660634000,-201.17697641,0.00025867,2]
[426606672,1782660634000,-491.76812058,0.00025867,2]
[426606674,1782660634000,-457.94780186,0.00025867,2]
[426606668,1782660634000,-314.68379172,0.00025867,2]
[426606670,1782660634000,-315.08489061,0.00025867,2]
[426606675,1782660634000,-434.65704466,0.00025867,2]
[426606673,1782660634000,-299.94832447,0.00025867,2]
[426606677,1782660634000,-403.08575481,0.00025867,2]
[426606678,1782660634000,-182.01840074,0.00025867,2]
[426606679,1782660634000,-225.27574062,0.00025867,2]
[426606681,1782660634000,-258.05889242,0.00025867,2]
[426606680,1782660634000,-242.32636688,0.00025867,2]
[426606682,1782660634000,-1500.0,0.00025892,2]
[426606683,1782660634000,-198.08168941,0.00025911,2]
[426606684,1782660634000,-162.4903628,0.00025911,2]
[426606685,1782660634000,-155.11213605,0.00025911,2]
[426606687,1782660634000,-247.06956218,0.00025921,2]
[426606713,1782660634000,-444.57506737,0.00026427,2]
[426606705,1782660634000,-396.82542042,0.00026427,2]
[426606719,1782660634000,-230.20183412,0.00026427,2]
[426606741,1782660634000,-450.55148125,0.00026428,2]
[426606742,1782660634000,-516.11778485,0.00026428,2]
[426606746,1782660634000,-184.20775577,0.00026472,2]
[426606751,1782660634000,-159.64822018,0.00026472,2]
[426606745,1782660634000,-209.29198147,0.00026472,2]
[426606748,1782660634000,-396.16337881,0.00026472,2]